Cogmind - Beta 13 X2 @@@ ROGUE MODE // 2024.01.10 @ 17:21:01 Player: Minty Result: Self-destructed Performance ------------- Evolutions (1) 500 Regions Visited (2) 400 Robots Destroyed (9) 45 Value Destroyed (277) 277 Prototype IDs (0) 0 Alien Tech Used (0) 0 Bonus (0) 0 TOTAL SCORE: 1222 Bonus ------- None Cogmind --------- Core Integrity 75/400 Matter 297/300 Energy 100/100 System Corruption 0% Temperature Cool (6) Movement Core (50) Location -9/Materials Parts ------- > --- POWER (1) -------- (None) > --- PROPULSION (3) --- (None) > --- UTILITY (3) ------ Signal Interpreter > --- WEAPON (2) ------- (None) > --- INVENTORY (5) ---- Small Storage Unit ECM Suite Peak State ------------ > --- POWER ------------ Light Ion Engine > --- PROPULSION ------- Flight Unit Flight Unit > --- UTILITY ---------- Signal Interpreter ECM Suite > --- WEAPON ----------- Medium Laser Small Laser > --- INVENTORY -------- Small Storage Unit [Rating: 7] Favorites ----------- Power Light Ion Engine Engine Light Ion Engine Propulsion Flight Unit Leg Aluminum Leg Hover Unit Hover Unit Flight Unit Flight Unit Utility Signal Interpreter Device ECM Suite Storage Small Storage Unit Processor Signal Interpreter Weapon Medium Laser Energy Gun Medium Laser Ballistic Cannon Improved Light Cannon Special Weapon Plasma Cutter Build | -11 -10 -9 ------- Run | Yrd Mat Mat Slots Evolved 2 | . . 2 Power . | . . . Propulsion 1 | . . 1 Utility 1 | . . 1 Weapon . | . . . Parts Attached 9 | . 6 3 Power 1 | . . 1 Engine 1 | . . 1 Core . | . . . Reactor . | . . . Propulsion 3 | . 3 . Treads . | . . . Leg . | . . . Wheel . | . . . Hover 1 | . 1 . Flight 2 | . 2 . Utility 3 | . 3 . Device 2 | . 2 . Storage . | . . . Processor 1 | . 1 . Hackware . | . . . Protection . | . . . Artifact . | . . . Weapon 2 | . . 2 Energy Gun . | . . . Energy Cannon . | . . . Ballistic Gun . | . . . Ballistic Cannon 1 | . . 1 Launcher . | . . . Special Weapon 1 | . . 1 Impact Weapon . | . . . Slashing Weapon . | . . . Piercing Weapon . | . . . Special Melee Weapon . | . . . Unidentified Prototypes . | . . . Parts Lost 7 | . . 7 Power 2 | . . 2 Propulsion 2 | . . 2 Utility . | . . . Weapon 3 | . . 3 Highest Loss Streak 5 | . . 5 To Critical Strikes . | . . . Average Slot Usage (%) 84 | . 93 55 Engine 12 | . 14 8 Leg 1 | . 2 . Hover 3 | . 3 . Flight 17 | . 17 15 Device 7 | . 8 4 Storage 3 | . 3 . Processor 12 | . 12 11 Energy Gun 24 | . 28 11 Naked Turns . | . . . Heaviest Build 11 | 11 11 8 Greatest Support 20 | 20 20 8 Greatest Overweight (x) 1 | . 1 1 Average Overweight (x) . | . . . Largest Inventory Capacity 8 | . 8 5 Average Capacity 5 | . 5 5 Most Carried 8 | . 8 4 Average Carried 1 | . 1 2 Final Capacity 8 | 8 5 5 Final Carried 6 | 6 1 2 Class Distribution -------------------- 100% | Mutant Dominant Class ---------------- Mutant | -10/Materials Mutant | -9/Materials Resources | -11 -10 -9 ----------- Run | Yrd Mat Mat Matter Collected 290 | 168 52 70 Remotely . | . . . Salvage Created 332 | . 108 224 Parts 26 | . 8 18 Haulers Intercepted . | . . . Recyclers Shooed . | . . . Parts Field Recycled . | . . . Retrieved Matter . | . . . Parts Self-Destructed . | . . . Prevented . | . . . Kills | -11 -10 -9 ------- Run | Yrd Mat Mat Combat Hostiles Destroyed 7 | . 2 5 Guns 5 | . 2 3 Cannons 2 | . . 2 Classes Destroyed 4 | . 2 2 Worker 2 | . 1 1 Grunt 5 | . 2 3 Duelist 1 | . . 1 Sentry 1 | . . 1 Best Kill Streak 4 | . 2 4 Combat Bots Only 3 | . 2 3 Max Kills in Single Turn 1 | . 1 1 Gunslinging . | . . . Exploded . | . . . Melee . | . . . Uniques/NPCs Destroyed . | . . . Combat | -11 -10 -9 -------- Run | Yrd Mat Mat Hostile Shots Fired 88 | . 5 83 Missed 23 | . . 23 Damage Taken 806 | . 58 748 Core 348 | . 23 325 Absorbed by Shields . | . . . Core Remaining (%) 95 | 100 90 . Volleys Fired 38 | . 8 30 Largest 2 | . 2 2 Hottest 90 | . 90 90 Shots Fired 54 | . 16 38 Gun 40 | . 16 24 Cannon 7 | . . 7 Launcher . | . . . Special 7 | . . 7 Kinetic 7 | . . 7 Thermal 47 | . 16 31 Explosive . | . . . Electromagnetic . | . . . Robot Hit Streak 9 | . 5 9 Robot Miss Streak 2 | . 2 2 Penetration Max . | . . . Secondary Targets 1 | . . 1 Max Gunslinging Chain 1 | . . 1 Shots Hit Robots 40 | . 11 29 Core Hits 19 | . 7 12 Critical Kills . | . . . Critical Parts Destroyed . | . . . Critical Strikes 1 | . 1 . Burn 1 | . 1 . Melee Attacks . | . . . Impact . | . . . Slashing . | . . . Piercing . | . . . Sneak Attacks . | . . . Combat Hostiles . | . . . Follow-up Attacks . | . . . Damage Inflicted 579 | . 129 450 Guns 375 | . 129 246 Cannons 139 | . . 139 Explosions . | . . . Melee . | . . . Ramming . | . . . Kinetic 139 | . . 139 Thermal 440 | . 129 311 Explosive . | . . . Electromagnetic . | . . . Impact . | . . . Slashing . | . . . Piercing . | . . . Highest Corruption . | . . . Average Corruption . | . . . Corruption Purged . | . . . Corruption Blocked . | . . . Overload Shots . | . . . Overflow Damage . | . . . Projectiles . | . . . Explosions . | . . . Melee . | . . . Knockbacks 2 | . . 2 Impact . | . . . Kinetic 2 | . . 2 Secondary . | . . . Self-Inflicted Damage . | . . . Shots . | . . . Rammed . | . . . Targets Rammed . | . . . Kicked . | . . . Crushed . | . . . Highest Temperature 164 | . 159 164 Average Temperature 71 | . 64 76 Received Heat Transfer 360 | . 36 324 Siege Activations . | . . . Robots Corrupted . | . . . Combat Hostiles . | . . . Parts Fried . | . . . Impact Corruptions . | . . . Robots Melted . | . . . Combat Hostiles . | . . . Parts Melted 1 | . 1 . Heat Transferred 1335 | . 409 926 Parts Sabotaged . | . . . Parts Stolen . | . . . Parts Stripped . | . . . Power Chain Reactions . | . . . Missiles Intercepted . | . . . Alert | -11 -10 -9 ------- Run | Yrd Mat Mat Peak Influence 117 | . 55 117 Initial 22 | . . 22 Average 48 | . 44 62 Maximum Alert Level . | . . . Low Security (%) 100 | . 100 100 Level 1 . | . . . Level 2 . | . . . Level 3 . | . . . Level 4 . | . . . Level 5 . | . . . High Security . | . . . Max Security . | . . . Squads Dispatched 2 | . 1 1 Investigation 1 | . . 1 Extermination . | . . . Reinforcement 1 | . 1 . Assault . | . . . Garrison . | . . . Intercept . | . . . Searches Triggered . | . . . Construction Impeded . | . . . Haulers Reinforced . | . . . Active Scanning Responses . | . . . Cargo Convoy Interrupts . | . . . Stealth | -11 -10 -9 --------- Run | Yrd Mat Mat Distress Signals 3 | . . 3 Communications Jammed . | . . . Distress Signals . | . . . Times Spotted 12 | . 3 9 Peak Tracking Total 5 | . 2 5 Tactical Retreats . | . . . Traps | -11 -10 -9 ------- Run | Yrd Mat Mat Traps Triggered . | . . . Indirectly . | . . . Trap Hack Attempts . | . . . Triggered . | . . . Disarmed . | . . . Reprogrammed . | . . . Reused . | . . . Traps Extracted . | . . . Installed . | . . . Triggered . | . . . Machines | -11 -10 -9 ---------- Run | Yrd Mat Mat Machines Disabled . | . . . Max in Single Turn . | . . . Machines Repaired . | . . . Machines Dismantled . | . . . Machines Sabotaged . | . . . Overloaded Fab Kills . | . . . Hacking | -11 -10 -9 --------- Run | Yrd Mat Mat Machines Accessed 1 | . . 1 Terminals 1 | . . 1 Fabricators . | . . . Repair Stations . | . . . Recycling Units . | . . . Scanalyzers . | . . . Garrison Access . | . . . Total Hacks 1 | . . 1 Successful 1 | . . 1 Failed . | . . . Catastrophic . | . . . Database Lockouts . | . . . Manual 1 | . . 1 Terminals 1 | . . 1 Fabricators . | . . . Repair Stations . | . . . Recycling Units . | . . . Scanalyzers . | . . . Garrison Access . | . . . Terminal Hacks . | . . . Fabricator Hacks . | . . . Repair Station Hacks . | . . . Recycling Unit Hacks . | . . . Scanalyzer . | . . . Garrison Access Hacks . | . . . Unauthorized Hacks 1 | . . 1 Terminals 1 | . . 1 Sabotage 1 | . . 1 Fabricators . | . . . Repair Stations . | . . . Recycling Units . | . . . Scanalyzers . | . . . Garrison Access . | . . . Data Cores Recovered . | . . . Used . | . . . Hacking Detections . | . . . Full Trace Events . | . . . Feedback Events . | . . . Feedback Blocked . | . . . Robot Schematics Acquired . | . . . Robots Built . | . . . Authchips . | . . . Time . | . . . Total Robot Build Rating . | . . . Part Schematics Acquired . | . . . Parts Built . | . . . Authchips . | . . . Time . | . . . Total Part Build Rating . | . . . Parts Repaired . | . . . Time . | . . . Parts Recycled . | . . . Recycled Matter . | . . . Retrieved Matter . | . . . Retrieved Components . | . . . Parts Scanalyzed . | . . . Part Schematics Acquired . | . . . Parts Damaged . | . . . Bothacking | -11 -10 -9 ------------ Run | Yrd Mat Mat Used RIF Installer . | . . . Robots Hacked . | . . . Non-combat . | . . . Combat . | . . . Robot Hacks Applied . | . . . Relay Couplers Released . | . . . Fabnet Peak Effective % . | . . . Robots Rewired . | . . . Allies Hacked . | . . . Hacks Repelled . | . . . Allies | -11 -10 -9 -------- Run | Yrd Mat Mat Total Allies . | . . . Largest Group . | . . . Highest-Rated Group . | . . . Highest-Rated Ally . | . . . Total Orders . | . . . Ally Attacks . | . . . Total Damage . | . . . Kills . | . . . Allies Corrupted . | . . . Allies Melted . | . . . Intel | -11 -10 -9 ------- Run | Yrd Mat Mat Robot Analysis Total . | . . . Derelict Logs Recovered . | . . . Drone Launches . | . . . Drone Recoveries . | . . . Exploration | -11 -10 -9 ------------- Run | Yrd Mat Mat Turns Passed 510 | . 391 119 Spaces Moved 225 | 1 146 78 Core 1 | . . 1 Treads . | . . . Legs 18 | 1 17 . Wheels . | . . . Hover 89 | . 89 . Flight 117 | . 40 77 Fastest Speed 37 | 120 37 37 Average Speed 68 | 120 84 37 Slowest Speed 120 | 120 120 100 Overloaded Moves . | . . . Propulsion Burnouts . | . . . Robots Hopped 9 | . 5 4 Cave-ins Triggered . | . . . Exploration Rate (%) 14 | 1 32 11 Regions Visited 2 Branch Regions . Pre-discovered Areas . | . . . Known Exits Taken 1 | . 1 . Unknown Exits Taken 1 | 1 . . Scrap Searched . | . . . Spaces Dug . | . . . Terrain Destroyed . | . . . Melee . | . . . Projectile . | . . . AOE . | . . . Terrain Rammed . | . . . Walls Destroyed . | . . . Machines Disabled . | . . . Actions | -11 -10 -9 --------- Run | Yrd Mat Mat Total 515 | . 397 118 Wait 236 | . 228 8 Move 207 | . 137 70 Hop 7 | . 3 4 Pick Up 3 | . 1 2 Fast Attach 5 | . 4 1 Attach 4 | . 2 2 Detach 6 | . 5 1 Swap . | . . . Drop 9 | . 9 . Fire 38 | . 8 30 Melee . | . . . Ram . | . . . Kick . | . . . Crush . | . . . Escape Stasis . | . . . Rewire . | . . . Trap . | . . . Miscellaneous . | . . . Route ------- -11/Scrapyard -10/Materials -9/Materials History --------- Turn | Location | Event 1 | -11/Scrapyard | Discovered new exit (range 0) 1 | -11/Scrapyard | Entered Materials 153 | -10/Materials | Discovered new exit (range 12) 303 | -10/Materials | Build established: Mutant 390 | -10/Materials | Identified exit to Materials 392 | -10/Materials | Entered another Materials area 392 | -9/Materials | Evolved 2 slots: Propulsion x1, Utility x1 491 | -9/Materials | Core integrity fell below 50% 511 | -9/Materials | Core integrity fell below 20% 511 | -9/Materials | Self-destructed Last Messages --------------- 00448_ W-16 Scout sends out distress signal. 00450_ K-01 Serf collects debris. 00453_ Acquired 10 matter. 00453_ K-01 Serf collects debris. 00456_ T-07 Excavator is excavating. 00471_ W-16 Scout sends out distress signal. 00478_ Flight Unit destroyed. 00479_ G-34 Mercenary destroyed. 00481_ Med. Laser severed. 00483_ L-31 Rogue destroyed. 00484_ Flight Unit destroyed. 00494_ Plasma Cutter destroyed. 00497_ Acquired 10 matter. 00497_ Ion Engine destroyed. 00498_ Acquired 4 matter. 00503_ G-34 Mercenary knocked back. 00504_ Acquired 4 matter. 00505_ G-34 Mercenary knocked back. 00506_ Acquired 4 matter. 00511_ Imp. Light Cannon destroyed. Map ----- +----------------------------------------------------+ | ?????????????????????????????????????????????????? | | ?????????????????????????????????????????????????? | | ?????????????????????????????????????????????????? | | ?????????????????????????????????????????????????? | | ?????????????????????????????????????????????????? | | ?????????????????????????????????????????????????? | | ?????????????????????????????????????????????????? | | ?????????????????????????????????????????????????? | | ?????????????????????????????? ??????????????????? | | ?????????????????????????????? ??????????????????? | | ?????????????????????????????? ??????????????????? | | ?????????????????????????????# ??????????????????? | | ?????????????????????????????# ??????????????????? | | ?????????????????????????????# ?????????????#????? | | ?????????????????????????????# ????????????? ????? | | ???????????????????????#####?# ###????? ""? ????? | | ???????????????????????#!! #?# #??????"T" ????? | | ???????????????????????#!! #?# #?????? """ #? | | ???????????????????????#!! #?# #??????? """ #? | | ???????????????????????# #?# #??????? """ #? | | ???????????????????????# #?# #???????? ??? | | ???????????????????????# #?# #???????? ???? | | ????????????????######## ### ##?????###+###??? | | ????????????????# ###+### ####### #??? | | ????????????????# !*gg #??? | | ????????????????# =@[%g =%! =%[= #??? | | ????????????????# /[=%!% * [ #### | | ????????????????# ####### #######%= | | ????????????????### ###?????############## ##### | | ????????????????? #??????????# """ # ##### | | ????????????????######??????????# "T" # # T | | ????????????????????????????????# + / | | ????????????????????????????????# # # | | ????????????????????????????????# # # | | ????????????????????????????????# """ # # | | ????????????????????????????????# """ # ##### | | ????????????????????????????????# """ # #???? | | ????????????????????????????????# # ##### | | ????????????????????????????????########## | | ?????????????????????????????????????????# | | ?????????????????????????????????????????# ##### | | ?????????????????????????????????????????# #???? | | ?????????????????????????????????????????#####???? | | ?????????????????????????????????????????????????? | | ?????????????????????????????????????????????????? | | ?????????????????????????????????????????????????? | | ?????????????????????????????????????????????????? | | ?????????????????????????????????????????????????? | | ?????????????????????????????????????????????????? | | ?????????????????????????????????????????????????? | +----------------------------------------------------+ Best States ------------- Heat Dissipation 28 Energy Generation 10 Energy Capacity 250 Matter Stores 300 Matter Capacity 300 Sight Range 16 Terrain Scan Density 10 ECM Strength 1 Evasion (%) 62 Item Schematics ----------------- None Robot Schematics ------------------ None Fabricated ------------ Nothing Alien Tech Used ----------------- None Achievements -------------- None Challenges ------------ None Game ------ Seed HoverBombardmentMediator Manual? 0 Play Time 00:03:51 Cumulative 580.9 hours Start 2024.01.10 @ 17:18:28 End 2024.01.10 @ 17:21:01 Sessions 1 Manual Loads 0 Difficulty Rogue Special Mode None Game No. 488 Rogue 215 Adventurer 123 Explorer 150 Win Type - Total 25 Types 19/0/4/1/0/0/0/1/0 Lore% 78 Gallery% 90 Achievement% 75 Wizard Run 0 Options --------- ASCII 0 Keyboard 1 Movement Numpad Keybinds 0 Fullscreen 2 Font 18/X11Bold Map View 76x50 Zoom Use 0% Tactical HUD 1 Map Filters NONE Filters NONE Steam 1 RUN: 423a9f2e-aa8f-471f-9e4f-51d16d6a822e